[Event "Titled Tuesday Blitz April 26 Early 2022"]
[White "Bacrot, Etienne"]
[Black "Abdusattorov, Nodirbek"]
[WhiteFideId "605506"]
[BlackFideId "14204118"]
[WhiteElo "2673"]
[BlackElo "2663"]
[Result "1-0"]
[Round "06"]
[TimeControl "180+1"]
[Date "2022.04.26"]
[WhiteClock "0:00:14"]
[BlackClock "0:00:14"]

1. e4 {[%clk 0:03:00]}  c5 {[%clk 0:02:57]} 2. Nf3 {[%clk 0:03:00]}  g6 {[%clk 0:02:57]} 3. d4 {[%clk 0:03:00]}  cxd4 {[%clk 0:02:57]} 4. Qxd4 {[%clk 0:03:00]}  Nf6 {[%clk 0:02:56]} 5. Nc3 {[%clk 0:03:00]}  Nc6 {[%clk 0:02:55]} 6. Qa4 {[%clk 0:03:00]}  d6 {[%clk 0:02:53]} 7. e5 {[%clk 0:03:01]}  dxe5 {[%clk 0:02:53]} 8. Nxe5 {[%clk 0:03:01]}  Bd7 {[%clk 0:02:49]} 9. Nxd7 {[%clk 0:03:01]}  Qxd7 {[%clk 0:02:47]} 10. Be3 {[%clk 0:03:01]}  Bg7 {[%clk 0:02:46]} 11. Rd1 {[%clk 0:03:01]}  Qc8 {[%clk 0:02:37]} 12. Be2 {[%clk 0:02:57]}  O-O {[%clk 0:02:38]} 13. O-O {[%clk 0:02:57]}  a6 {[%clk 0:02:34]} 14. Qb3 {[%clk 0:02:38]}  b5 {[%clk 0:02:03]} 15. Nd5 {[%clk 0:02:37]}  Rb8 {[%clk 0:01:57]} 16. c3 {[%clk 0:02:24]}  e6 {[%clk 0:01:43]} 17. Nxf6+ {[%clk 0:02:17]}  Bxf6 {[%clk 0:01:44]} 18. Qa3 {[%clk 0:01:55]}  Be7 {[%clk 0:01:19]} 19. Qb3 {[%clk 0:01:55]}  Qc7 {[%clk 0:01:17]} 20. Qc2 {[%clk 0:01:47]}  Rfd8 {[%clk 0:01:02]} 21. g3 {[%clk 0:01:45]}  Nb4 {[%clk 0:00:55]} 22. Qb3 {[%clk 0:01:33]}  Nd5 {[%clk 0:00:54]} 23. Bc1 {[%clk 0:01:31]}  Bc5 {[%clk 0:00:48]} 24. Bf3 {[%clk 0:01:26]}  Nb6 {[%clk 0:00:42]} 25. Bg5 {[%clk 0:01:24]}  Be7 {[%clk 0:00:41]} 26. Bf4 {[%clk 0:01:19]}  Bd6 {[%clk 0:00:41]} 27. Bc1 {[%clk 0:01:17]}  Nc4 {[%clk 0:00:40]} 28. Kg2 {[%clk 0:01:13]}  Kg7 {[%clk 0:00:39]} 29. Qc2 {[%clk 0:01:11]}  Be5 {[%clk 0:00:38]} 30. Qe2 {[%clk 0:01:06]}  Qc5 {[%clk 0:00:35]} 31. h4 {[%clk 0:01:01]}  h5 {[%clk 0:00:29]} 32. Bg5 {[%clk 0:00:59]}  Bf6 {[%clk 0:00:29]} 33. Bf4 {[%clk 0:00:56]}  Be5 {[%clk 0:00:20]} 34. Bc1 {[%clk 0:00:55]}  a5 {[%clk 0:00:16]} 35. Rxd8 {[%clk 0:00:46]}  Rxd8 {[%clk 0:00:16]} 36. Rd1 {[%clk 0:00:47]}  Rxd1 {[%clk 0:00:15]} 37. Qxd1 {[%clk 0:00:47]}  a4 {[%clk 0:00:16]} 38. Qd7 {[%clk 0:00:40]}  Bf6 {[%clk 0:00:16]} 39. Qc6 {[%clk 0:00:39]}  Qf5 {[%clk 0:00:13]} 40. Be4 {[%clk 0:00:30]}  Ne5 {[%clk 0:00:13]} 41. Qb7 {[%clk 0:00:17]}  Qg4 {[%clk 0:00:09]} 42. f3 {[%clk 0:00:18]}  Nxf3 {[%clk 0:00:10]} 43. Bxf3 {[%clk 0:00:18]}  Qc4 {[%clk 0:00:11]} 44. a3 {[%clk 0:00:15]}  Be5 {[%clk 0:00:10]} 45. Qe4 {[%clk 0:00:15]}  Qc7 {[%clk 0:00:11]} 46. Qe2 {[%clk 0:00:15]}  Bxg3 {[%clk 0:00:10]} 47. Qxb5 {[%clk 0:00:13]}  Bxh4 {[%clk 0:00:09]} 48. Kf1 {[%clk 0:00:11]}  Qg3 {[%clk 0:00:08]} 49. Qe2 {[%clk 0:00:11]}  Bf6 {[%clk 0:00:08]} 50. Qg2 {[%clk 0:00:11]}  Qd6 {[%clk 0:00:08]} 51. Qd2 {[%clk 0:00:11]}  Qc5 {[%clk 0:00:08]} 52. Qh6+ {[%clk 0:00:10]}  Kg8 {[%clk 0:00:08]} 53. Qe3 {[%clk 0:00:11]}  Qf5 {[%clk 0:00:07]} 54. Qe4 {[%clk 0:00:11]}  Qh3+ {[%clk 0:00:07]} 55. Bg2 {[%clk 0:00:11]}  Qh2 {[%clk 0:00:07]} 56. Qf4 {[%clk 0:00:11]}  Qxf4+ {[%clk 0:00:06]} 57. Bxf4 {[%clk 0:00:12]}  g5 {[%clk 0:00:06]} 58. Be3 {[%clk 0:00:12]}  g4 {[%clk 0:00:06]} 59. Bc6 {[%clk 0:00:12]}  Be5 {[%clk 0:00:07]} 60. Bxa4 {[%clk 0:00:12]}  f5 {[%clk 0:00:08]} 61. Be8 {[%clk 0:00:11]}  f4 {[%clk 0:00:08]} 62. Bd4 {[%clk 0:00:11]}  Bxd4 {[%clk 0:00:07]} 63. cxd4 {[%clk 0:00:11]}  h4 {[%clk 0:00:08]} 64. Bh5 {[%clk 0:00:12]}  g3 {[%clk 0:00:08]} 65. Kg2 {[%clk 0:00:12]}  Kg7 {[%clk 0:00:08]} 66. Bf3 {[%clk 0:00:12]}  Kf6 {[%clk 0:00:08]} 67. a4 {[%clk 0:00:13]}  e5 {[%clk 0:00:09]} 68. dxe5+ {[%clk 0:00:13]}  Kxe5 {[%clk 0:00:10]} 69. a5 {[%clk 0:00:13]}  Kd4 {[%clk 0:00:11]} 70. a6 {[%clk 0:00:13]}  Ke3 {[%clk 0:00:12]} 71. a7 {[%clk 0:00:13]}  h3+ {[%clk 0:00:12]} 72. Kxh3 {[%clk 0:00:14]}  Kxf3 {[%clk 0:00:13]} 73. a8=Q+ {[%clk 0:00:14]}  Ke3 {[%clk 0:00:14]} 74. Qa3+ {[%clk 0:00:14]} 1-0


[Site "https://www.chess.com"]

[Event "Titled Tuesday Blitz April 26 Early 2022"]
[White "Banusz, Tamas"]
[Black "O`Gorman, Tom"]
[WhiteFideId "722413"]
[BlackFideId "2508249"]
[WhiteElo "2850"]
[BlackElo "2580"]
[Result "0-1"]
[Round "06"]
[TimeControl "180+1"]
[Date "2022.04.26"]
[WhiteClock "0:00:13"]
[BlackClock "0:00:56"]

1. d4 {[%clk 0:03:00]}  Nf6 {[%clk 0:02:58]} 2. Nf3 {[%clk 0:03:00]}  g6 {[%clk 0:02:59]} 3. Bf4 {[%clk 0:03:00]}  Bg7 {[%clk 0:02:59]} 4. e3 {[%clk 0:03:01]}  O-O {[%clk 0:03:00]} 5. Nbd2 {[%clk 0:03:01]}  d6 {[%clk 0:02:59]} 6. h3 {[%clk 0:03:01]}  Nbd7 {[%clk 0:02:59]} 7. Be2 {[%clk 0:03:00]}  c5 {[%clk 0:03:00]} 8. c3 {[%clk 0:02:59]}  b6 {[%clk 0:03:01]} 9. Bh2 {[%clk 0:02:58]}  Bb7 {[%clk 0:03:01]} 10. O-O {[%clk 0:02:59]}  a6 {[%clk 0:02:59]} 11. a4 {[%clk 0:02:59]}  Ra7 {[%clk 0:03:00]} 12. Bd3 {[%clk 0:02:58]}  Qa8 {[%clk 0:02:58]} 13. Qe2 {[%clk 0:02:58]}  Ne4 {[%clk 0:02:56]} 14. Nxe4 {[%clk 0:02:57]}  Bxe4 {[%clk 0:02:57]} 15. Rfd1 {[%clk 0:02:48]}  Nf6 {[%clk 0:02:55]} 16. Bxe4 {[%clk 0:02:43]}  Qxe4 {[%clk 0:02:50]} 17. Nd2 {[%clk 0:02:24]}  Qc6 {[%clk 0:02:50]} 18. Qf3 {[%clk 0:02:20]}  Qxf3 {[%clk 0:02:49]} 19. Nxf3 {[%clk 0:02:20]}  Ne4 {[%clk 0:02:45]} 20. Kf1 {[%clk 0:02:19]}  Rfa8 {[%clk 0:02:43]} 21. Nd2 {[%clk 0:02:12]}  Nxd2+ {[%clk 0:02:42]} 22. Rxd2 {[%clk 0:02:12]}  Bf6 {[%clk 0:02:31]} 23. a5 {[%clk 0:02:08]}  cxd4 {[%clk 0:02:10]} 24. cxd4 {[%clk 0:02:04]}  Rb7 {[%clk 0:02:08]} 25. Ke2 {[%clk 0:01:44]}  Rab8 {[%clk 0:01:58]} 26. axb6 {[%clk 0:01:43]}  Rxb6 {[%clk 0:01:57]} 27. Ra2 {[%clk 0:01:44]}  Rc8 {[%clk 0:01:55]} 28. f3 {[%clk 0:01:35]}  Kf8 {[%clk 0:01:53]} 29. Bg3 {[%clk 0:01:35]}  Ke8 {[%clk 0:01:53]} 30. e4 {[%clk 0:01:26]}  Rc4 {[%clk 0:01:51]} 31. Bf2 {[%clk 0:01:23]}  Bg5 {[%clk 0:01:44]} 32. Be3 {[%clk 0:01:01]}  Bxe3 {[%clk 0:01:44]} 33. Kxe3 {[%clk 0:01:01]}  Kd7 {[%clk 0:01:44]} 34. Kd3 {[%clk 0:00:58]}  Rc1 {[%clk 0:01:43]} 35. Rc2 {[%clk 0:00:46]}  Rxc2 {[%clk 0:01:40]} 36. Kxc2 {[%clk 0:00:46]}  d5 {[%clk 0:01:40]} 37. Ra5 {[%clk 0:00:42]}  dxe4 {[%clk 0:01:33]} 38. fxe4 {[%clk 0:00:43]}  Rf6 {[%clk 0:01:33]} 39. Kc3 {[%clk 0:00:40]}  Kc7 {[%clk 0:01:32]} 40. Rc5+ {[%clk 0:00:23]}  Kb6 {[%clk 0:01:30]} 41. Rc8 {[%clk 0:00:23]}  Rf2 {[%clk 0:01:29]} 42. Re8 {[%clk 0:00:23]}  e6 {[%clk 0:01:28]} 43. Re7 {[%clk 0:00:21]}  h5 {[%clk 0:01:26]} 44. g4 {[%clk 0:00:21]}  h4 {[%clk 0:01:24]} 45. g5 {[%clk 0:00:19]}  Kb5 {[%clk 0:01:22]} 46. Rb7+ {[%clk 0:00:17]}  Kc6 {[%clk 0:01:22]} 47. Ra7 {[%clk 0:00:17]}  Kb5 {[%clk 0:01:15]} 48. Rb7+ {[%clk 0:00:16]}  Kc6 {[%clk 0:01:15]} 49. Ra7 {[%clk 0:00:16]}  Kb6 {[%clk 0:01:07]} 50. Re7 {[%clk 0:00:16]}  Rf3+ {[%clk 0:01:07]} 51. Kc4 {[%clk 0:00:16]}  Rxh3 {[%clk 0:01:07]} 52. Rxf7 {[%clk 0:00:17]}  Rg3 {[%clk 0:01:07]} 53. Rf6 {[%clk 0:00:17]}  Rxg5 {[%clk 0:01:07]} 54. Rxe6+ {[%clk 0:00:17]}  Kc7 {[%clk 0:01:07]} 55. Rf6 {[%clk 0:00:15]}  h3 {[%clk 0:01:06]} 56. Rf2 {[%clk 0:00:13]}  Rh5 {[%clk 0:00:56]} 57. Rh2 {[%clk 0:00:13]}  g5 {[%clk 0:00:56]} 0-1


[Site "https://www.chess.com"]

[Event "Titled Tuesday Blitz April 26 Early 2022"]
[White "Barria Zuniga, Daniel"]
[Black "Gunduz, Umut Erdem"]
[WhiteFideId "3400816"]
[BlackFideId "6381383"]
[WhiteElo "2414"]
[BlackElo "2099"]
[Result "1-0"]
[Round "06"]
[TimeControl "180+1"]
[Date "2022.04.26"]
[WhiteClock "0:02:18"]
[BlackClock "0:00:58"]

1. d4 {[%clk 0:02:52]}  Nf6 {[%clk 0:02:58]} 2. c4 {[%clk 0:02:48]}  c5 {[%clk 0:02:55]} 3. d5 {[%clk 0:02:48]}  e6 {[%clk 0:02:56]} 4. Nc3 {[%clk 0:02:47]}  exd5 {[%clk 0:02:56]} 5. cxd5 {[%clk 0:02:48]}  d6 {[%clk 0:02:57]} 6. e4 {[%clk 0:02:48]}  g6 {[%clk 0:02:57]} 7. h3 {[%clk 0:02:48]}  Bg7 {[%clk 0:02:57]} 8. Nf3 {[%clk 0:02:49]}  O-O {[%clk 0:02:58]} 9. Bd3 {[%clk 0:02:49]}  b5 {[%clk 0:02:57]} 10. Nxb5 {[%clk 0:02:48]}  Re8 {[%clk 0:02:52]} 11. O-O {[%clk 0:02:48]}  Nxe4 {[%clk 0:02:52]} 12. Bxe4 {[%clk 0:02:47]}  Rxe4 {[%clk 0:02:52]} 13. Ng5 {[%clk 0:02:48]}  Rb4 {[%clk 0:02:49]} 14. Qf3 {[%clk 0:02:47]}  Rxb5 {[%clk 0:02:45]} 15. Qxf7+ {[%clk 0:02:46]}  Kh8 {[%clk 0:02:46]} 16. Re1 {[%clk 0:02:46]}  Bd7 {[%clk 0:02:36]} 17. Re7 {[%clk 0:02:45]}  Qg8 {[%clk 0:02:36]} 18. Bd2 {[%clk 0:02:38]}  Rxb2 {[%clk 0:02:31]} 19. Rae1 {[%clk 0:02:35]}  Qxf7 {[%clk 0:02:14]} 20. Nxf7+ {[%clk 0:02:32]}  Kg8 {[%clk 0:02:11]} 21. Nh6+ {[%clk 0:02:27]}  Kh8 {[%clk 0:00:58]} 22. Re8+ {[%clk 0:02:18]}  Bxe8 {[%clk 0:00:58]} 23. Rxe8+ {[%clk 0:02:18]}  Bf8 {[%clk 0:00:58]} 24. Bc3# {[%clk 0:02:18]} 1-0


[Site "https://www.chess.com"]

[Event "Titled Tuesday Blitz April 26 Early 2022"]
[White "Bas Mas, Jose Joaquin"]
[Black "Blokhin, Sofia"]
[WhiteFideId "22219064"]
[BlackFideId "4508190"]
[WhiteElo "2212"]
[BlackElo "1764"]
[Result "1-0"]
[Round "06"]
[TimeControl "180+1"]
[Date "2022.04.26"]
[WhiteClock "0:02:22"]
[BlackClock "0:00:29"]

1. e4 {[%clk 0:03:00]}  c5 {[%clk 0:02:58]} 2. Nc3 {[%clk 0:03:00]}  e6 {[%clk 0:02:56]} 3. Nf3 {[%clk 0:03:00]}  Nc6 {[%clk 0:02:55]} 4. d4 {[%clk 0:03:01]}  cxd4 {[%clk 0:02:55]} 5. Nxd4 {[%clk 0:03:02]}  e5 {[%clk 0:02:50]} 6. Ndb5 {[%clk 0:02:58]}  d6 {[%clk 0:02:49]} 7. Nd5 {[%clk 0:02:57]}  Be7 {[%clk 0:02:04]} 8. Nbc7+ {[%clk 0:02:53]}  Kf8 {[%clk 0:02:03]} 9. Nxa8 {[%clk 0:02:54]}  Be6 {[%clk 0:01:57]} 10. Nac7 {[%clk 0:02:52]}  Bxd5 {[%clk 0:01:54]} 11. Nxd5 {[%clk 0:02:51]}  Bh4 {[%clk 0:01:47]} 12. g3 {[%clk 0:02:49]}  Be7 {[%clk 0:01:43]} 13. Bg2 {[%clk 0:02:48]}  Nf6 {[%clk 0:01:38]} 14. Nxe7 {[%clk 0:02:46]}  Qxe7 {[%clk 0:01:36]} 15. Bg5 {[%clk 0:02:46]}  h6 {[%clk 0:01:35]} 16. Bxf6 {[%clk 0:02:46]}  Qxf6 {[%clk 0:01:35]} 17. c3 {[%clk 0:02:47]}  g6 {[%clk 0:01:34]} 18. Qf3 {[%clk 0:02:46]}  Qe6 {[%clk 0:01:32]} 19. Qd3 {[%clk 0:02:44]}  h5 {[%clk 0:01:25]} 20. Qd5 {[%clk 0:02:42]}  Qe7 {[%clk 0:01:24]} 21. h4 {[%clk 0:02:42]}  Kg7 {[%clk 0:01:22]} 22. Rd1 {[%clk 0:02:41]}  Rd8 {[%clk 0:01:19]} 23. O-O {[%clk 0:02:41]}  f5 {[%clk 0:01:17]} 24. exf5 {[%clk 0:02:40]}  gxf5 {[%clk 0:01:17]} 25. Bh3 {[%clk 0:02:39]}  Qf6 {[%clk 0:01:13]} 26. Qd3 {[%clk 0:02:30]}  e4 {[%clk 0:01:08]} 27. Qe3 {[%clk 0:02:29]}  Kh7 {[%clk 0:00:46]} 28. Qg5 {[%clk 0:02:22]}  Qxg5 {[%clk 0:00:37]} 29. hxg5 {[%clk 0:02:22]}  Ne5 {[%clk 0:00:37]} 30. Bxf5+ {[%clk 0:02:22]}  Kg7 {[%clk 0:00:29]} 31. Bxe4 {[%clk 0:02:22]} 1-0


[Site "https://www.chess.com"]

[Event "Titled Tuesday Blitz April 26 Early 2022"]
[White "Bashirli, Saadat"]
[Black "Shtyka, Sergey"]
[WhiteFideId "13429990"]
[BlackFideId "4138465"]
[WhiteElo "1173"]
[BlackElo "2014"]
[Result "0-1"]
[Round "06"]
[TimeControl "180+1"]
[Date "2022.04.26"]
[WhiteClock "0:00:07"]
[BlackClock "0:00:12"]

1. d4 {[%clk 0:03:00]}  c5 {[%clk 0:02:56]} 2. d5 {[%clk 0:03:00]}  e5 {[%clk 0:02:55]} 3. Nc3 {[%clk 0:02:56]}  d6 {[%clk 0:02:55]} 4. Nf3 {[%clk 0:02:54]}  Be7 {[%clk 0:02:55]} 5. e4 {[%clk 0:02:53]}  Bg4 {[%clk 0:02:54]} 6. Bb5+ {[%clk 0:02:52]}  Nd7 {[%clk 0:02:53]} 7. a4 {[%clk 0:02:50]}  a6 {[%clk 0:02:52]} 8. Be2 {[%clk 0:02:50]}  Bxf3 {[%clk 0:02:51]} 9. Bxf3 {[%clk 0:02:49]}  Bg5 {[%clk 0:02:52]} 10. Bxg5 {[%clk 0:02:47]}  Qxg5 {[%clk 0:02:51]} 11. Qd2 {[%clk 0:02:46]}  Qe7 {[%clk 0:02:50]} 12. a5 {[%clk 0:02:36]}  Ngf6 {[%clk 0:02:50]} 13. Qg5 {[%clk 0:02:33]}  O-O {[%clk 0:02:48]} 14. h4 {[%clk 0:02:27]}  h6 {[%clk 0:02:45]} 15. Qd2 {[%clk 0:02:25]}  Rac8 {[%clk 0:02:30]} 16. g4 {[%clk 0:02:21]}  Nh7 {[%clk 0:02:19]} 17. Ke2 {[%clk 0:02:03]}  Qf6 {[%clk 0:02:15]} 18. Rag1 {[%clk 0:02:00]}  Qf4 {[%clk 0:02:10]} 19. Qd1 {[%clk 0:01:53]}  f6 {[%clk 0:01:55]} 20. Rg3 {[%clk 0:01:37]}  c4 {[%clk 0:01:53]} 21. Rhg1 {[%clk 0:01:21]}  Nc5 {[%clk 0:01:49]} 22. Bh1 {[%clk 0:01:08]}  f5 {[%clk 0:01:17]} 23. Rf3 {[%clk 0:00:59]}  Qh2 {[%clk 0:01:16]} 24. gxf5 {[%clk 0:00:42]}  Qxh4 {[%clk 0:01:13]} 25. Rfg3 {[%clk 0:00:41]}  Ng5 {[%clk 0:01:10]} 26. f3 {[%clk 0:00:28]}  Rc7 {[%clk 0:01:04]} 27. Qf1 {[%clk 0:00:20]}  Qh5 {[%clk 0:00:48]} 28. Kd2 {[%clk 0:00:16]}  Qe8 {[%clk 0:00:33]} 29. Qe2 {[%clk 0:00:13]}  Rff7 {[%clk 0:00:33]} 30. Qe3 {[%clk 0:00:12]}  Qe7 {[%clk 0:00:32]} 31. f4 {[%clk 0:00:12]}  exf4 {[%clk 0:00:32]} 32. Qxf4 {[%clk 0:00:12]}  Nd7 {[%clk 0:00:19]} 33. Kc1 {[%clk 0:00:06]}  Ne5 {[%clk 0:00:19]} 34. Qe3 {[%clk 0:00:03]}  Qf6 {[%clk 0:00:19]} 35. Qd4 {[%clk 0:00:03]}  Rfe7 {[%clk 0:00:18]} 36. Qe3 {[%clk 0:00:03]}  Nd7 {[%clk 0:00:17]} 37. Qf4 {[%clk 0:00:03]}  Nc5 {[%clk 0:00:17]} 38. Re1 {[%clk 0:00:01]}  Kh8 {[%clk 0:00:16]} 39. Rge3 {[%clk 0:00:02]}  Re5 {[%clk 0:00:16]} 40. Qg3 {[%clk 0:00:02]}  Rce7 {[%clk 0:00:16]} 41. Qf4 {[%clk 0:00:02]}  Qf8 {[%clk 0:00:15]} 42. Bg2 {[%clk 0:00:03]}  Qe8 {[%clk 0:00:15]} 43. Bh1 {[%clk 0:00:03]}  Kg8 {[%clk 0:00:14]} 44. Qg4 {[%clk 0:00:02]}  Nd7 {[%clk 0:00:14]} 45. Qf4 {[%clk 0:00:03]}  Nf6 {[%clk 0:00:14]} 46. Qh4 {[%clk 0:00:02]}  Qd8 {[%clk 0:00:14]} 47. Qf4 {[%clk 0:00:03]}  Qxa5 {[%clk 0:00:14]} 48. Kd2 {[%clk 0:00:02]}  b5 {[%clk 0:00:14]} 49. Rb1 {[%clk 0:00:02]}  b4 {[%clk 0:00:14]} 50. Rbe1 {[%clk 0:00:02]}  bxc3+ {[%clk 0:00:14]} 51. bxc3 {[%clk 0:00:03]}  Qc5 {[%clk 0:00:14]} 52. Qg3 {[%clk 0:00:03]}  Qc7 {[%clk 0:00:13]} 53. Bf3 {[%clk 0:00:03]}  Qc5 {[%clk 0:00:12]} 54. Bg2 {[%clk 0:00:01]}  a5 {[%clk 0:00:12]} 55. Qf4 {[%clk 0:00:01]}  a4 {[%clk 0:00:12]} 56. Rb1 {[%clk 0:00:01]}  a3 {[%clk 0:00:13]} 57. Rb8+ {[%clk 0:00:02]}  Kh7 {[%clk 0:00:13]} 58. Ra8 {[%clk 0:00:02]}  Nxd5 {[%clk 0:00:12]} 59. exd5 {[%clk 0:00:02]}  Qxe3+ {[%clk 0:00:12]} 60. Qxe3 {[%clk 0:00:02]}  Rxe3 {[%clk 0:00:12]} 61. Rxa3 {[%clk 0:00:02]}  Re2+ {[%clk 0:00:13]} 62. Kc1 {[%clk 0:00:03]}  Rxg2 {[%clk 0:00:12]} 63. Kb2 {[%clk 0:00:04]}  h5 {[%clk 0:00:12]} 64. Ra8 {[%clk 0:00:05]}  h4 {[%clk 0:00:12]} 65. Rf8 {[%clk 0:00:06]}  h3 {[%clk 0:00:12]} 66. f6 {[%clk 0:00:07]}  gxf6 {[%clk 0:00:12]} 67. Rxf6 {[%clk 0:00:07]} 0-1


[Site "https://www.chess.com"]

[Event "Titled Tuesday Blitz April 26 Early 2022"]
[White "Begunov, Konstantin"]
[Black "Steil-Antoni, Fiona"]
[WhiteFideId "4118510"]
[BlackFideId "4001249"]
[WhiteElo "2262"]
[BlackElo "2059"]
[Result "1-0"]
[Round "06"]
[TimeControl "180+1"]
[Date "2022.04.26"]
[WhiteClock "0:00:37"]
[BlackClock "0:00:45"]

1. d4 {[%clk 0:02:53]}  d6 {[%clk 0:02:59]} 2. e4 {[%clk 0:02:52]}  Nf6 {[%clk 0:02:57]} 3. f3 {[%clk 0:02:51]}  e5 {[%clk 0:02:55]} 4. Ne2 {[%clk 0:02:50]}  Nbd7 {[%clk 0:02:50]} 5. Be3 {[%clk 0:02:50]}  Be7 {[%clk 0:02:51]} 6. c4 {[%clk 0:02:50]}  c6 {[%clk 0:02:51]} 7. Nbc3 {[%clk 0:02:37]}  O-O {[%clk 0:02:50]} 8. Qd2 {[%clk 0:02:37]}  Qa5 {[%clk 0:02:43]} 9. Ng3 {[%clk 0:02:19]}  exd4 {[%clk 0:02:24]} 10. Bxd4 {[%clk 0:02:19]}  Ne5 {[%clk 0:02:22]} 11. Be2 {[%clk 0:02:14]}  a6 {[%clk 0:02:19]} 12. a3 {[%clk 0:01:20]}  Be6 {[%clk 0:02:18]} 13. c5 {[%clk 0:01:05]}  Nc4 {[%clk 0:02:07]} 14. Bxc4 {[%clk 0:01:02]}  Bxc4 {[%clk 0:02:08]} 15. cxd6 {[%clk 0:01:01]}  Bd8 {[%clk 0:01:48]} 16. e5 {[%clk 0:00:57]}  Nd7 {[%clk 0:01:41]} 17. b4 {[%clk 0:00:50]}  Nxe5 {[%clk 0:01:17]} 18. bxa5 {[%clk 0:00:48]}  Nd3+ {[%clk 0:01:17]} 19. Kd1 {[%clk 0:00:41]}  Bxa5 {[%clk 0:01:17]} 20. Kc2 {[%clk 0:00:40]}  Rfd8 {[%clk 0:00:57]} 21. Qg5 {[%clk 0:00:37]}  f6 {[%clk 0:00:45]} 22. Qxa5 {[%clk 0:00:37]} 1-0


[Site "https://www.chess.com"]

[Event "Titled Tuesday Blitz April 26 Early 2022"]
[White "Bortnyk, Olexandr"]
[Black "Kamsky, Gata"]
[WhiteFideId "14120828"]
[BlackFideId "2000024"]
[WhiteElo "2723"]
[BlackElo "2645"]
[Result "1-0"]
[Round "06"]
[TimeControl "180+1"]
[Date "2022.04.26"]
[WhiteClock "0:00:03"]
[BlackClock "0:00:07"]

1. d4 {[%clk 0:02:58]}  d5 {[%clk 0:02:57]} 2. Bf4 {[%clk 0:02:57]}  c5 {[%clk 0:02:49]} 3. Nc3 {[%clk 0:02:58]}  Nc6 {[%clk 0:02:10]} 4. e3 {[%clk 0:02:39]}  cxd4 {[%clk 0:02:06]} 5. exd4 {[%clk 0:02:34]}  a6 {[%clk 0:02:05]} 6. h3 {[%clk 0:02:00]}  Bf5 {[%clk 0:02:02]} 7. Nf3 {[%clk 0:02:01]}  e6 {[%clk 0:02:01]} 8. Bd3 {[%clk 0:02:01]}  Bxd3 {[%clk 0:01:54]} 9. Qxd3 {[%clk 0:02:02]}  Bd6 {[%clk 0:01:51]} 10. Ne2 {[%clk 0:02:00]}  Nf6 {[%clk 0:01:45]} 11. O-O {[%clk 0:01:57]}  O-O {[%clk 0:01:44]} 12. c3 {[%clk 0:01:51]}  b5 {[%clk 0:01:37]} 13. Qe3 {[%clk 0:01:41]}  Ne4 {[%clk 0:01:30]} 14. Nd2 {[%clk 0:01:23]}  Nxd2 {[%clk 0:01:29]} 15. Qxd2 {[%clk 0:01:24]}  Na5 {[%clk 0:01:17]} 16. Bxd6 {[%clk 0:01:19]}  Nc4 {[%clk 0:01:13]} 17. Qc2 {[%clk 0:01:15]}  Qxd6 {[%clk 0:01:11]} 18. b3 {[%clk 0:00:54]}  Na5 {[%clk 0:00:54]} 19. Qd2 {[%clk 0:00:54]}  Nc6 {[%clk 0:00:51]} 20. Rac1 {[%clk 0:00:52]}  Rfd8 {[%clk 0:00:49]} 21. Ng3 {[%clk 0:00:50]}  g6 {[%clk 0:00:41]} 22. Rfe1 {[%clk 0:00:48]}  a5 {[%clk 0:00:38]} 23. h4 {[%clk 0:00:49]}  Qe7 {[%clk 0:00:36]} 24. h5 {[%clk 0:00:48]}  Qh4 {[%clk 0:00:35]} 25. Qh6 {[%clk 0:00:44]}  Ne7 {[%clk 0:00:33]} 26. Re3 {[%clk 0:00:39]}  Rac8 {[%clk 0:00:29]} 27. Rf3 {[%clk 0:00:37]}  Nf5 {[%clk 0:00:26]} 28. Nxf5 {[%clk 0:00:34]}  exf5 {[%clk 0:00:27]} 29. Rh3 {[%clk 0:00:32]}  Qf6 {[%clk 0:00:26]} 30. hxg6 {[%clk 0:00:32]}  hxg6 {[%clk 0:00:26]} 31. Qh7+ {[%clk 0:00:28]}  Kf8 {[%clk 0:00:25]} 32. Re1 {[%clk 0:00:29]}  Qg7 {[%clk 0:00:24]} 33. Qh4 {[%clk 0:00:29]}  Kg8 {[%clk 0:00:23]} 34. Qe7 {[%clk 0:00:28]}  Qf8 {[%clk 0:00:20]} 35. Qb7 {[%clk 0:00:19]}  Rb8 {[%clk 0:00:19]} 36. Qa6 {[%clk 0:00:19]}  b4 {[%clk 0:00:19]} 37. Qxa5 {[%clk 0:00:16]}  Ra8 {[%clk 0:00:19]} 38. Qxb4 {[%clk 0:00:16]}  Qxb4 {[%clk 0:00:19]} 39. cxb4 {[%clk 0:00:17]}  Rxa2 {[%clk 0:00:19]} 40. Re7 {[%clk 0:00:16]}  Rb8 {[%clk 0:00:19]} 41. Rc3 {[%clk 0:00:12]}  Rd2 {[%clk 0:00:17]} 42. Rcc7 {[%clk 0:00:12]}  Rf8 {[%clk 0:00:17]} 43. b5 {[%clk 0:00:11]}  Rxd4 {[%clk 0:00:16]} 44. b6 {[%clk 0:00:12]}  Rb4 {[%clk 0:00:16]} 45. b7 {[%clk 0:00:13]}  Kg7 {[%clk 0:00:16]} 46. Red7 {[%clk 0:00:10]}  Rxb3 {[%clk 0:00:15]} 47. Rxd5 {[%clk 0:00:10]}  Rb1+ {[%clk 0:00:13]} 48. Kh2 {[%clk 0:00:10]}  f4 {[%clk 0:00:14]} 49. Kh3 {[%clk 0:00:09]}  Rb2 {[%clk 0:00:12]} 50. Kg4 {[%clk 0:00:06]}  Kh6 {[%clk 0:00:09]} 51. Rc8 {[%clk 0:00:04]}  f5+ {[%clk 0:00:08]} 52. Kxf4 {[%clk 0:00:03]}  Rxf2+ {[%clk 0:00:07]} 53. Kg3 {[%clk 0:00:03]} 1-0


[Site "https://www.chess.com"]

[Event "Titled Tuesday Blitz April 26 Early 2022"]
[White "Brahami, Lamine"]
[Black "Piliczewski, Bogusz"]
[WhiteFideId "7905637"]
[BlackFideId "1104144"]
[WhiteElo "1937"]
[BlackElo "1896"]
[Result "0-1"]
[Round "06"]
[TimeControl "180+1"]
[Date "2022.04.26"]
[WhiteClock "0:00:08"]
[BlackClock "0:01:53"]

1. d4 {[%clk 0:02:51]}  d5 {[%clk 0:02:59]} 2. c4 {[%clk 0:02:50]}  c6 {[%clk 0:02:58]} 3. Nc3 {[%clk 0:02:51]}  Nf6 {[%clk 0:02:58]} 4. Bg5 {[%clk 0:02:50]}  Ne4 {[%clk 0:02:57]} 5. Nxe4 {[%clk 0:02:48]}  dxe4 {[%clk 0:02:57]} 6. Bf4 {[%clk 0:02:48]}  g6 {[%clk 0:02:55]} 7. e3 {[%clk 0:02:41]}  Bg7 {[%clk 0:02:55]} 8. Ne2 {[%clk 0:02:39]}  O-O {[%clk 0:02:55]} 9. Nc3 {[%clk 0:02:39]}  f5 {[%clk 0:02:54]} 10. Be2 {[%clk 0:02:38]}  Nd7 {[%clk 0:02:48]} 11. O-O {[%clk 0:02:35]}  e5 {[%clk 0:02:46]} 12. dxe5 {[%clk 0:02:31]}  Nxe5 {[%clk 0:02:45]} 13. Qxd8 {[%clk 0:02:28]}  Rxd8 {[%clk 0:02:45]} 14. Rfd1 {[%clk 0:02:29]}  Be6 {[%clk 0:02:43]} 15. c5 {[%clk 0:02:06]}  Nc4 {[%clk 0:02:29]} 16. Bxc4 {[%clk 0:00:09]}  Bxc4 {[%clk 0:02:26]} 17. Bg5 {[%clk 0:00:10]}  Rd3 {[%clk 0:02:18]} 18. Rxd3 {[%clk 0:00:08]}  Bxd3 {[%clk 0:02:18]} 19. Rd1 {[%clk 0:00:08]}  Re8 {[%clk 0:01:53]} 0-1


[Site "https://www.chess.com"]